[Event "24th Hoogeschool Zeeland 2022"]
[Site "Vlissingen"]
[Date "2022.08.11"]
[Round "7.4"]
[White "Harsha Bharathakoti"]
[Black "Shakhverdian, William"]
[Result "1-0"]
[ECO "D31"]
[WhiteElo "2547"]
[BlackElo "2040"]
[Annotator "TA"]
[PlyCount "125"]
[EventDate "2022.08.05"]
[EventType "swiss"]
[EventCountry "NED"]
[SourceTitle "playchess.com"]
[Source "ChessBase"]
[SourceQuality "1"]
[TimeControl "40/5400+30:1800+30"]

{[%evp 9,125,21,21,21,20,23,16,18,25,18,74,66,66,64,78,39,80,67,125,119,138,116,117,120,144,120,210,101,108,116,122,112,110,105,110,114,117,116,114,104,132,127,129,132,132,123,156,158,165,167,166,123,194,194,194,194,193,193,194,193,208,200,207,200,221,222,206,177,181,179,172,149,145,125,137,124,141,131,133,85,87,85,141,107,191,216,208,191,208,197,151,111,159,150,157,135,106,113,188,206,367,259,264,256,255,258,259,250,471,483,352,588,12842,12843,12843,12843,12841,12841]} 1. d4 {[%emt 0:00:26]} d5 {[%emt 0:00:08]} 2. c4 {[%emt 0:00:31]} e6 {[%emt 0:00:30]} 3. Nc3 {[%emt 0:01:21]} a6 {[%emt 0:01:01]} 4. cxd5 {[%emt 0:00:18]} exd5 {[%emt 0:00:07]} 5. Bf4 {[%emt 0:01:11]} Nf6 {[%emt 0:02:20]} 6. e3 {[%emt 0:00:07] D31: Queen's Gambit Declined: Semi-Slav without ...Nf6 (+ Marshall Gambit and Noteboom) and Exchange Variation lines without ...Nf6.} Bd6 {[%emt 0:00:54]} 7. Bg5 {[%emt 0:05:22]} c6 {[%emt 0:12:53]} 8. Bd3 {[%emt 0:00:23] The position is equal.} Be6 {[%emt 0:03:17]} 9. Qc2 {[%emt 0:07:48] [#]} c5 $146 {[%emt 0:12:08]} (9... h6 $11 {keeps the balance.} 10. Bh4 O-O) ({Predecessor:} 9... Nbd7 10. f4 h6 11. Bh4 g5 12. fxg5 Ng4 13. Nf3 Be7 14. Qd2 hxg5 15. Bg3 Nh6 {½-½ (38) Vrolijk,L (2480)-Suleymanli,A (2536) Reykjavik 2021}) 10. dxc5 $16 {[%emt 0:02:51]} Bxc5 {[%emt 0:03:23]} 11. Nge2 {[%emt 0:05:47]} Nc6 {[%emt 0:11:13]} 12. Rd1 {[%emt 0:01:16]} Be7 {[%emt 0:05:16]} 13. Nf4 {[%emt 0:09:57]} Nb4 {[%emt 0:05:36]} (13... d4 $14) 14. Qb3 {[%emt 0:06:57]} O-O {[%emt 0:11:28][%cal Of6h5]} 15. O-O {[%emt 0:09:36] Hoping for Bxf6.} Qd6 {[%emt 0:07:46]} 16. Bb1 {[%emt 0:11:37] White is more active.} h6 {[%emt 0:04:51]} 17. Bh4 {[%emt 0:10:31]} Rfd8 {[%emt 0:05:17]} (17... d4 $16 {keeps fighting.} 18. Nxe6 Qxe6) 18. a3 {[%emt 0:01:35]} (18. Nxe6 $18 {is more deadly.} Ng4 {[#]} 19. Nf4 $1 Bxh4 20. g3 (20. Ncxd5 Nxd5 21. Rxd5 Qc6 $18)) 18... d4 {[%emt 0:01:50]} 19. Nxe6 {[%emt 0:03:14]} ({Don't play} 19. Qxb4 Qxb4 20. axb4 dxc3 21. Nxe6 (21. bxc3 Bb3 $15) 21... Rxd1 22. Rxd1 fxe6 23. bxc3 Rc8 $11) 19... Qxe6 {[%emt 0:00:06]} 20. Qxe6 {[%emt 0:00:10] Really sharp!} fxe6 {[%emt 0:00:05]} 21. exd4 {[%emt 0:01:29]} ({Don't take} 21. axb4 dxc3 22. bxc3 Rxd1 23. Rxd1 Rc8 $14) 21... Nc6 {[%emt 0:00:35]} 22. Ne2 {[%emt 0:00:03][%cal Bc3e2,Be2c1,Bc1d3,Bd3e5][%mdl 32]} Nd5 {[%emt 0:03:11]} 23. Bxe7 {[%emt 0:01:01]} Ncxe7 {[%emt 0:00:19] Pair of Knights!} 24. Rfe1 {[%emt 0:00:27]} Rac8 {[%emt 0:02:38]} 25. Nc1 {[%emt 0:02:04]} Rd6 {[%emt 0:00:24]} 26. Nd3 {[%emt 0:00:35]} b6 {[%emt 0:00:40]} 27. Ba2 {[%emt 0:02:35]} Rcd8 {[%emt 0:01:32]} 28. Ne5 {[%emt 0:04:16]} b5 {[%emt 0:01:55]} 29. Nd3 {[%emt 0:02:57]} Nc7 {[%emt 0:00:08]} 30. Rc1 {[%emt 0:00:02]} Ncd5 {[%emt 0:01:29]} (30... Rc6 $16) 31. Nc5 $18 {[%emt 0:00:15]} Rc8 {[%emt 0:00:36]} 32. Rcd1 {[%emt 0:00:31]} Rcc6 {[%emt 0:01:01]} 33. g3 {[%emt 0:04:09]} Kf8 {[%emt 0:00:12]} 34. Rd3 {[%emt 0:00:25]} g6 {[%emt 0:01:05]} 35. b4 {[%emt 0:03:39]} Kg7 {[%emt 0:00:26]} 36. h4 {[%emt 0:01:18]} h5 {[%emt 0:00:06]} 37. Bb3 {[%emt 0:00:51]} Nf5 {[%emt 0:01:58]} 38. Bxd5 {[%emt 0:01:15]} Rxd5 {[%emt 0:00:32]} 39. Nxe6+ {[%emt 0:00:08]} Kf6 {[%emt 0:00:28]} 40. Nc5 {[%emt 0:00:58]} Rxd4 {[%emt 0:00:33]} 41. Nd7+ {[%emt 0:01:52]} Kg7 {[%emt 0:00:40]} 42. Rxd4 {[%emt 0:00:02]} Nxd4 $16 {[%emt 0:00:09][%mdl 4096] Endgame KRN-KRN} 43. Re7+ {[%emt 0:00:01]} Kg8 {[%emt 0:01:54]} 44. Ne5 {[%emt 0:00:35]} ({Better is} 44. Re8+ Kh7 45. Ra8) 44... Rf6 {[%emt 0:02:35]} 45. Rc7 {[%emt 0:01:31]} Re6 {[%emt 0:02:35]} (45... Nf3+ $142 46. Nxf3 Rxf3) 46. f4 {[%emt 0:00:03]} Nf5 {[%emt 0:00:40]} (46... a5 $16) 47. Kf2 {[%emt 0:00:18]} Rd6 {[%emt 0:00:59]} 48. Kf3 {[%emt 0:01:08]} Nd4+ {[%emt 0:01:18]} 49. Kg2 {[%emt 0:00:45]} Nf5 {[%emt 0:00:28]} 50. Kh3 {[%emt 0:00:03]} Rd1 {[%emt 0:02:43]} (50... Kf8 $142 51. Kg2 Kg8) 51. Rc6 {[%emt 0:11:12]} ({Of course not} 51. Nxg6 $6 Ne3 52. g4 Nxg4 $11) 51... Ne3 {[%emt 0:01:38][%cal Rd1h1]} 52. Rxg6+ {[%emt 0:00:03]} Kh7 {[%emt 0:00:15][%cal Rd1h1]} 53. g4 {[%emt 0:00:01]} hxg4+ {[%emt 0:05:02]} (53... Nxg4 $16 54. Rxa6 Ne3) 54. Kg3 $18 {[%emt 0:00:05]} Rd2 $2 {[%emt 0:01:36]} (54... Rh1 {might work better.} 55. Rxa6 Rh3+ 56. Kf2 Nd1+ 57. Kg1 Ne3) 55. f5 {[%emt 0:01:39]} Nxf5+ {[%emt 0:02:14]} 56. Kxg4 {[%emt 0:00:03]} Ne3+ {[%emt 0:04:07]} 57. Kf3 {[%emt 0:02:09]} Nc2 {[%emt 0:05:30]} 58. Rxa6 {[%emt 0:01:14] And now h5 would win.} Rd5 $2 {[%emt 0:00:46]} (58... Rd1 59. Kg4 Rg1+ 60. Kf5 Rf1+ 61. Kg5 Rg1+ 62. Kh5 Kg7) 59. Kf4 {[%emt 0:04:20]} Rd4+ {[%emt 0:00:31]} 60. Kg5 {[%emt 0:00:02]} Re4 {[%emt 0:00:32] White is clearly winning.} 61. Ra7+ {[%emt 0:00:09]} Kg8 {[%emt 0:00:40] [#]} 62. Kg6 $1 {[%emt 0:00:03][%cal Ra7a8]} Kf8 {[%emt 0:00:06]} (62... Rf4 63. Rg7+) 63. Nd7+ {[%emt 0:00:03] Weighted Error Value: White=0.11 (very precise) /Black=0.23 (precise)} 1-0

[Event "24th Hoogeschool Zeeland 2022"]
[Site "Vlissingen"]
[Date "2022.08.11"]
[Round "7.5"]
[White "Beerdsen, Thomas"]
[Black "Royal, Shreyas"]
[Result "1-0"]
[ECO "C52"]
[WhiteElo "2500"]
[BlackElo "2353"]
[Annotator "TA"]
[PlyCount "71"]
[EventDate "2022.08.05"]
[EventType "swiss"]
[EventCountry "NED"]
[SourceTitle "playchess.com"]
[Source "ChessBase"]
[SourceQuality "1"]
[TimeControl "40/5400+30:1800+30"]

{[%evp 10,71,-13,-31,0,0,0,0,2,14,89,112,100,105,94,109,89,102,105,94,96,69,93,69,74,39,68,57,54,50,80,39,54,18,105,25,36,59,57,54,56,49,46,42,71,66,122,113,173,173,147,174,501,485,477,462,1182,1143,29995,29996,29996,29997,29998,29999]} 1. e4 {[%emt 0:02:23]} e5 {[%emt 0:00:06]} 2. Nf3 {[%emt 0:00:05]} Nc6 {[%emt 0:00:09]} 3. Bc4 {[%emt 0:00:08]} Bc5 {[%emt 0:00:17]} 4. b4 {[%emt 0:00:05]} Bxb4 {[%emt 0:00:22]} 5. c3 {[%emt 0:00:17]} Ba5 {[%emt 0:00:06]} 6. d4 $1 {[%emt 0:00:12]} b5 {[%emt 0:00:42] 6...d6 is the modern continuation. C52: Evans Gambit Accepted: 5 c3 Ba5.} 7. Bxb5 {[%emt 0:01:01] aiming for Bg5.} Nxd4 $1 {[%emt 0:00:11]} 8. Nxd4 {[%emt 0:00:25]} exd4 {[%emt 0:00:06] The position is equal.} 9. O-O {[%emt 0:00:28]} dxc3 {[%emt 0:10:02]} (9... c6 $11 {remains equal.} 10. Bc4 Ne7) 10. Bc4 $1 $16 {[%emt 0:01:49]} Ne7 {[%emt 0:15:30] [#] Inhibits Qd5.} 11. Bxf7+ {[%emt 0:00:08][%mdl 64] Decoy} Kxf7 {[%emt 0:00:23]} 12. Qh5+ {[%emt 0:00:07]} Kg8 {[%emt 0:02:58] ...d5 is the strong threat.} 13. Qxa5 {[%emt 0:00:07]} h6 {[%emt 0:00:28] [#] Against Bg5} 14. Nxc3 $146 {[%emt 0:04:11]} ({Predecessor:} 14. Bf4 d6 15. Nxc3 Kh7 16. Nb5 Rf8 17. Bg3 Bd7 18. Rac1 a6 19. Nc3 Nc6 20. Qa3 {½-½ (52) Feliciano Ebert,V (2200)-Rothebarth,A (2039) Rio de Janeiro 2017}) 14... Kh7 {[%emt 0:00:10]} 15. Ba3 {[%emt 0:12:44]} d6 {[%emt 0:04:53]} 16. Rad1 {[%emt 0:06:56]} Bb7 {[%emt 0:10:36]} 17. f4 {[%emt 0:05:25]} Re8 {[%emt 0:09:43]} 18. Bb2 {[%emt 0:10:04]} Qd7 {[%emt 0:03:06]} 19. Rd3 {[%emt 0:08:23]} Ng8 {[%emt 0:10:47]} 20. e5 {[%emt 0:11:11] Inhibits Nf6.} Ne7 {[%emt 0:04:16]} 21. Nb5 {[%emt 0:09:15]} Qc6 {[%emt 0:01:44] [#]} (21... Rac8 $11 {keeps the balance.}) 22. Rg3 {[%emt 0:02:54] Active counter play!} ({Better is} 22. Rd2 $1 $16 Qc5+ 23. Bd4) 22... Nf5 {[%emt 0:02:13]} 23. Nd4 $1 {[%emt 0:00:27]} Nxd4 {[%emt 0:01:06]} 24. Bxd4 {[%emt 0:00:04] And now e6 would win.} dxe5 {[%emt 0:03:11]} 25. Bxe5 {[%emt 0:00:34]} Re7 {[%emt 0:00:06]} 26. Qa3 {[%emt 0:02:20]} Rd7 {[%emt 0:03:06]} 27. h3 {[%emt 0:02:55]} Rg8 {[%emt 0:07:15]} (27... Qa6 $14) 28. Rc1 {[%emt 0:03:33]} Qe4 {[%emt 0:01:01]} (28... Qe6 $16 {was worth a try.}) 29. Rxc7 $18 {[%emt 0:03:28]} ({And not} 29. Qxa7 Rd2 30. Kh1 Rxg2 31. Qxb7 Qxb7 $17) 29... Rxc7 {[%emt 0:01:31]} 30. Bxc7 {[%emt 0:00:06]} g5 $2 {[%emt 0:01:05]} (30... Qd4+ {is tougher.} 31. Kh2 Be4) 31. Be5 {[%emt 0:01:37]} Re8 {[%emt 0:01:26] Inhibits Qe7+.} 32. Qxa7 {[%emt 0:02:14]} ({Much less strong is} 32. Qd6 Qc6 33. Qd3+ Kg8 $18) 32... Re7 {[%emt 0:03:57]} (32... Qd5 $142 33. Qb6 Bc6) 33. Qb8 {[%emt 0:01:20] Threatening mate with Qh8+.} Rd7 {[%emt 0:01:00]} 34. Qh8+ {[%emt 0:00:18] White mates.} Kg6 {[%emt 0:00:04]} 35. Qg8+ {[%emt 0:00:11]} Kf5 {[%emt 0:00:16] [#]} 36. Rxg5+ $1 {[%emt 0:00:05][%mdl 512] Weighted Error Value: White=0.10 (very precise) /Black=0.56} 1-0

[Event "24th Hoogeschool Zeeland 2022"]
[Site "Vlissingen"]
[Date "2022.08.11"]
[Round "7.6"]
[White "Vrolijk, Liam"]
[Black "Ikonnikov, Vyacheslav"]
[Result "1/2-1/2"]
[ECO "E01"]
[WhiteElo "2464"]
[BlackElo "2493"]
[Annotator "TA"]
[PlyCount "87"]
[EventDate "2022.08.05"]
[EventType "swiss"]
[EventCountry "NED"]
[SourceTitle "playchess.com"]
[Source "ChessBase"]
[SourceQuality "1"]
[TimeControl "40/5400+30:1800+30"]

{[%evp 10,87,35,33,41,39,51,48,54,44,53,22,55,50,50,52,53,51,75,64,71,69,70,32,39,50,43,25,43,50,66,38,98,-20,-14,0,0,-42,0,0,0,0,0,-5,0,0,0,0,0,0,0,0,0,0,0,-5,35,19,18,22,27,22,56,81,67,91,77,0,28,2,10,9,8,0,11,7,8,8,7,0]} 1. d4 {[%emt 0:00:04]} Nf6 {[%emt 0:00:14]} 2. c4 {[%emt 0:00:14]} e6 {[%emt 0:00:16]} 3. g3 {[%emt 0:00:08]} d5 {[%emt 0:03:45]} 4. Bg2 {[%emt 0:00:30]} Nc6 {[%emt 0:00:22]} 5. Nf3 {[%emt 0:01:57]} Bd6 {[%emt 0:00:38]} 6. O-O {[%emt 0:02:08]} O-O $1 {[%emt 0:00:19] 6...0-0 scores better than 6...dxc4. E01: Catalan: Early deviations.} 7. b3 {[%emt 0:07:19]} h6 {[%emt 0:02:28]} 8. Bb2 {[%emt 0:02:25]} b6 {[%emt 0:01:10] White is slightly better.} 9. Nc3 {[%emt 0:01:11]} Bb7 {[%emt 0:01:23]} 10. e3 {[%emt 0:00:36]} Re8 {[%emt 0:27:09]} 11. Qe2 {[%emt 0:02:24] [#]} Rb8 $146 {[%emt 0:01:01]} ({Predecessor:} 11... a6 12. Rfd1 Ra7 13. Rac1 b5 14. Ra1 bxc4 15. bxc4 dxc4 16. Rab1 Nd5 17. Nd2 Na5 18. Nxc4 Nxc4 19. Qxc4 {½-½ (36) Olivas Montiel,C (2078)-Kolanek,R (2164) LSS email 2013}) 12. Rfd1 {[%emt 0:15:41]} Na5 {[%emt 0:08:39]} 13. Rac1 {[%emt 0:04:44]} a6 {[%emt 0:05:50]} 14. c5 {[%emt 0:09:32]} Bf8 {[%emt 0:00:24]} 15. Ne5 {[%emt 0:04:12]} Nd7 {[%emt 0:02:04]} 16. Nd3 {[%emt 0:05:04]} (16. e4 $5 {[%cal Re4d5]}) 16... Nc6 {[%emt 0:08:34]} 17. b4 {[%emt 0:02:40]} bxc5 {[%emt 0:00:23]} 18. dxc5 {[%emt 0:02:41]} Ba8 {[%emt 0:07:28]} 19. a3 {[%emt 0:01:23]} Qc8 {[%emt 0:00:20]} 20. f4 {[%emt 0:06:50]} d4 {[%emt 0:07:22]} ({Black should try} 20... Nf6 $14) 21. Na2 {[%emt 0:04:38]} (21. Ne4 $16) 21... dxe3 $1 $11 {[%emt 0:00:27]} 22. Qxe3 {[%emt 0:00:14]} a5 {[%emt 0:02:11]} 23. g4 {[%emt 0:01:09]} axb4 {[%emt 0:00:33]} (23... e5 {is interesting.} 24. fxe5 Ncxe5 25. Bxa8 Rxa8 26. Bxe5 f6) 24. Naxb4 {[%emt 0:02:06]} Nxb4 {[%emt 0:00:29]} 25. axb4 {[%emt 0:00:29] [#] Hoping for c6.} Bxg2 {[%emt 0:00:23]} 26. Kxg2 {[%emt 0:00:06]} e5 {[%emt 0:08:05]} 27. fxe5 {[%emt 0:01:39]} Nf6 $1 {[%emt 0:00:02]} 28. Qf3 {[%emt 0:04:50] Active counter play!} Qxg4+ {[%emt 0:00:09]} 29. Qxg4 {[%emt 0:00:05]} Nxg4 {[%emt 0:00:03]} 30. Re1 {[%emt 0:02:36] Prevents Ne3+.} Red8 {[%emt 0:04:25]} 31. Rcd1 {[%emt 0:02:51]} h5 {[%emt 0:00:48]} 32. Bc3 {[%emt 0:03:10]} Rd5 {[%emt 0:01:43]} (32... Ra8 $5 {[%cal Ra8a2]}) 33. Nf2 {[%emt 0:01:26]} Rxd1 {[%emt 0:01:33]} 34. Nxd1 {[%emt 0:00:06]} Rd8 {[%emt 0:00:32]} 35. Nf2 {[%emt 0:03:16] Prevents Rd3.} Nxf2 {[%emt 0:02:32]} 36. Kxf2 {[%emt 0:00:07][%mdl 4096] Endgame KRB-KRB} Rd3 {[%emt 0:00:29]} 37. Re3 {[%emt 0:00:31]} Rd8 {[%emt 0:00:51]} 38. e6 {[%emt 0:00:55]} (38. Kf3 $16) 38... Re8 {[%emt 0:00:17]} 39. exf7+ {[%emt 0:02:25]} Kxf7 {[%emt 0:00:05] The position is equal.} 40. Rf3+ {[%emt 0:01:12]} Ke6 {[%emt 0:01:07]} 41. Rh3 {[%emt 0:34:17]} g6 {[%emt 0:12:36]} 42. Re3+ {[%emt 0:00:00]} Kf7 {[%emt 0:01:03]} 43. Rf3+ {[%emt 0:00:00]} Ke7 {[%emt 0:00:11]} 44. Re3+ {[%emt 0:00:00] Weighted Error Value: White=0.15 (very precise) /Black=0.08 (flawless)} 1/2-1/2

[Event "24th Hoogeschool Zeeland 2022"]
[Site "Vlissingen"]
[Date "2022.08.11"]
[Round "7.7"]
[White "Grutter, Tim"]
[Black "Schoppen, Casper"]
[Result "1/2-1/2"]
[ECO "B91"]
[WhiteElo "2246"]
[BlackElo "2507"]
[Annotator "TA"]
[PlyCount "53"]
[EventDate "2022.08.05"]
[EventType "swiss"]
[EventCountry "NED"]
[SourceTitle "playchess.com"]
[Source "ChessBase"]
[SourceQuality "1"]
[TimeControl "40/5400+30:1800+30"]

{[%evp 17,53,14,24,0,0,0,0,0,0,0,0,24,7,0,0,-2,0,0,0,0,0,0,0,0,0,0,0,0,0,0,353,0,0,0,0,0,0,0]} 1. e4 {[%emt 0:00:03]} c5 {[%emt 0:00:21]} 2. Nf3 {[%emt 0:00:05]} d6 {[%emt 0:01:04]} 3. d4 {[%emt 0:00:06]} cxd4 {[%emt 0:00:05]} 4. Nxd4 {[%emt 0:00:03]} Nf6 {[%emt 0:00:14]} 5. Nc3 {[%emt 0:00:04]} a6 {[%emt 0:01:03]} 6. g3 {[%emt 0:00:09]} e5 {[%emt 0:00:45]} 7. Nb3 {[%emt 0:00:05]} Be7 {[%emt 0:00:27]} 8. Bg2 {[%emt 0:00:06]} O-O {[%emt 0:00:15]} 9. O-O {[%emt 0:00:04]} b5 {[%emt 0:00:21][%cal Bb7b5,Bb5b4][%mdl 32]} 10. a4 {[%emt 0:00:05] B91: Sicilian Najdorf: 6 g3.} b4 {[%emt 0:00:15]} 11. Nd5 {[%emt 0:00:04]} a5 {[%emt 0:00:19]} 12. Be3 {[%emt 0:09:24] Black must now prevent Bb6.} Nxd5 {[%emt 0:00:17]} 13. Qxd5 {[%emt 0:00:16]} Ra6 {[%emt 0:00:05]} 14. Rfc1 {[%emt 0:04:53]} Be6 {[%emt 0:00:24]} 15. Qd3 {[%emt 0:03:57]} Ra8 {[%emt 0:24:17]} 16. f4 {[%emt 0:06:00] [#]} Nd7 $146 {[%emt 0:13:06][%cal Bb8d7,Bd7f6,Bf6g4,Bg4f2][%mdl 32]} ({Predecessor:} 16... exf4 17. gxf4 Nd7 18. Kh1 Re8 19. Nd4 Nc5 20. Nxe6 Nxe6 21. Rd1 Rc8 22. Qb5 Rxc2 {½-½ (59) Hall,M (2594)-Mendl,M (2536) ICCF email 2020}) 17. f5 {[%emt 0:12:07]} Bxb3 {[%emt 0:00:26]} 18. cxb3 {[%emt 0:00:15]} Bg5 {[%emt 0:04:06]} 19. Bxg5 {[%emt 0:06:49]} Qxg5 {[%emt 0:01:19]} 20. Qxd6 {[%emt 0:00:14]} Qe3+ {[%emt 0:05:00]} 21. Kh1 {[%emt 0:03:39]} Nf6 {[%emt 0:19:50]} 22. Qxe5 {[%emt 0:05:04]} Ng4 $1 {[%emt 0:14:27] ( -> ...Nf2+)} 23. Qc5 {[%emt 0:02:16]} ({Don't go for} 23. Qf4 $2 Nf2+ 24. Qxf2 Qxf2 $19) 23... Nf2+ {[%emt 0:07:28]} 24. Kg1 {[%emt 0:00:20]} Nh3+ $1 {[%emt 0:00:05][%mdl 64] [#] Discovered Attack (Double check). The position is equal.} 25. Kh1 $1 {[%emt 0:00:31]} Nf2+ {[%emt 0:00:14]} 26. Kg1 {[%emt 0:00:03]} Nh3+ $1 {[%emt 0:00:12][%mdl 64] Discovered Attack (Double check)} 27. Kh1 {[%emt 0:00:38] Weighted Error Value: White=0.03 (flawless) /Black=0.01 (flawless)} 1/2-1/2

[Event "24th Hoogeschool Zeeland 2022"]
[Site "Vlissingen"]
[Date "2022.08.11"]
[Round "7.8"]
[White "Dhulipalla Bala Chandra Prasad"]
[Black "De Jong, Tom"]
[Result "1-0"]
[ECO "D30"]
[WhiteElo "2423"]
[BlackElo "2203"]
[Annotator "TA"]
[PlyCount "77"]
[EventDate "2022.08.05"]
[EventType "swiss"]
[EventCountry "NED"]
[SourceTitle "playchess.com"]
[Source "ChessBase"]
[SourceQuality "1"]
[TimeControl "40/5400+30:1800+30"]

{[%evp 12,77,41,39,41,40,42,23,24,46,29,37,38,26,46,55,47,47,53,59,57,46,44,34,66,70,77,57,101,97,94,100,128,127,127,110,124,123,120,125,119,113,143,131,214,214,214,212,212,210,210,202,201,201,210,205,270,261,358,352,710,709,797,791,773,727,1059,868]} 1. d4 {[%emt 0:00:09]} d5 {[%emt 0:00:06]} 2. Nf3 {[%emt 0:01:07]} c5 {[%emt 0:00:39]} 3. c4 {[%emt 0:00:35]} e6 {[%emt 0:00:15]} 4. cxd5 {[%emt 0:01:43]} exd5 {[%emt 0:00:04]} 5. g3 {[%emt 0:00:04]} Nc6 {[%emt 0:00:20]} 6. Bg2 {[%emt 0:00:27]} cxd4 {[%emt 0:01:38]} 7. Nxd4 {[%emt 0:00:47]} Bc5 {[%emt 0:00:40] D30: Queen's Gambit Declined: Systems without Nc3.} 8. Nb3 {[%emt 0:00:59][%csl LRc5,LRd5] 8.Nb3 has lost popularity.} Bb6 {[%emt 0:00:42]} 9. Nc3 {[%emt 0:04:07]} ({Much weaker is} 9. Qxd5 Qxd5 10. Bxd5 Nb4 $17) (9. Bxd5 Nb4 10. Bf3 Qxd1+ 11. Kxd1 Be6 $11) 9... Nf6 {[%emt 0:01:23] White has an edge.} 10. O-O {[%emt 0:02:08]} ({But not} 10. Bxd5 Nb4 11. Bf3 Qxd1+ 12. Kxd1 O-O $11) 10... d4 {[%emt 0:02:24]} 11. Na4 {[%emt 0:00:34]} O-O {[%emt 0:00:14]} 12. Bg5 {[%emt 0:04:31]} h6 {[%emt 0:02:33]} 13. Bxf6 {[%emt 0:02:56]} Qxf6 {[%emt 0:00:06]} 14. Nxb6 {[%emt 0:03:08]} axb6 {[%emt 0:00:03]} 15. Bxc6 {[%emt 0:00:11]} bxc6 {[%emt 0:05:39]} 16. Qxd4 {[%emt 0:00:31]} Rd8 {[%emt 0:02:10]} 17. Qxb6 {[%emt 0:39:13] [#]} Bg4 $146 {[%emt 0:08:11]} ({Predecessor:} 17... Ba6 18. Rfe1 Qxb2 19. Qxc6 Rdc8 20. Qf3 Re8 21. e3 Bd3 22. Qd1 Bc2 23. Re2 Bxd1 24. Rxb2 {1-0 (41) Tsvetkov,A (2394)-Mischuk,D (2364) Cheliabinsk 2021}) 18. f3 {[%emt 0:05:55]} Bh3 {[%emt 0:08:17] Strongly threatening ...Rdb8.} 19. Rfb1 {[%emt 0:03:23]} Bf5 {[%emt 0:06:58] [#]} 20. Rd1 {[%emt 0:03:07]} Rxd1+ {[%emt 0:23:56]} 21. Rxd1 {[%emt 0:00:16]} Rxa2 {[%emt 0:00:15]} 22. Qd8+ {[%emt 0:02:32]} Qxd8 {[%emt 0:03:13]} 23. Rxd8+ $16 {[%emt 0:00:08][%mdl 4096] Endgame KRB-KRN} Kh7 {[%emt 0:00:02]} 24. Rd2 {[%emt 0:00:45]} Kg6 {[%emt 0:00:41]} 25. Kf2 {[%emt 0:01:20]} Kf6 {[%emt 0:00:23]} 26. Ke3 {[%emt 0:03:56]} Ra4 {[%emt 0:01:35]} 27. Nd4 {[%emt 0:04:58]} Bd7 {[%emt 0:01:05] [#]} (27... Rc4 $16 28. Nxf5 Kxf5) 28. Nxc6 $1 $18 {[%emt 0:01:13][%mdl 512]} Bxc6 {[%emt 0:01:30] KRB-KR} 29. Rd6+ {[%emt 0:00:12]} Ke5 {[%emt 0:00:08]} 30. Rxc6 {[%emt 0:00:15] KR-KR} Rb4 {[%emt 0:00:24]} 31. Rc5+ {[%emt 0:00:58]} Kd6 {[%emt 0:00:24]} 32. Rc2 {[%emt 0:00:05]} g5 {[%emt 0:00:18]} 33. Kd3 {[%emt 0:04:00]} f5 {[%emt 0:02:11]} 34. Kc3 {[%emt 0:01:05]} Ra4 {[%emt 0:00:22]} 35. Rd2+ {[%emt 0:00:56]} Ke5 $2 {[%emt 0:04:15]} (35... Kc5 36. Rd8 Rc4+ 37. Kd3 Rb4) 36. b4 {[%emt 0:02:03][%cal Bb2b4,Bb4b5,Bb5b6][%mdl 32] White is clearly winning.} g4 {[%emt 0:01:20]} 37. fxg4 {[%emt 0:01:09]} fxg4 {[%emt 0:00:03]} 38. b5 {[%emt 0:00:22]} Ke4 {[%emt 0:00:31]} 39. b6 {[%emt 0:00:37] Weighted Error Value: White=0.03 (flawless) /Black=0.19 (very precise)} 1-0

[Event "24th Hoogeschool Zeeland 2022"]
[Site "Vlissingen"]
[Date "2022.08.11"]
[Round "7.9"]
[White "Stillger, Bernhard"]
[Black "Van Delft, Merijn"]
[Result "1/2-1/2"]
[ECO "E92"]
[WhiteElo "2245"]
[BlackElo "2383"]
[Annotator "RC"]
[PlyCount "60"]
[EventDate "2022.08.05"]
[EventType "swiss"]
[EventCountry "NED"]
[SourceTitle "playchess.com"]
[Source "ChessBase"]
[SourceQuality "1"]
[TimeControl "40/5400+30:1800+30"]

1. d4 {[%emt 0:00:02]} Nf6 {[%emt 0:01:55]} 2. Nf3 {[%emt 0:00:10]} g6 {[%emt 0:00:21]} 3. c4 {[%emt 0:00:18]} Bg7 {[%emt 0:00:07]} 4. Nc3 {[%emt 0:00:04]} O-O {[%emt 0:00:11]} 5. e4 {[%emt 0:00:03]} d6 {[%emt 0:00:09]} 6. Be2 {[%emt 0:00:05]} e5 {[%emt 0:00:11]} 7. dxe5 {[%emt 0:00:40]} dxe5 {[%emt 0:00:13]} 8. Qxd8 {[%emt 0:00:04]} Rxd8 {[%emt 0:00:10]} 9. Bg5 {[%emt 0:00:04]} Re8 {[%emt 0:00:21]} 10. Nd5 {[%emt 0:00:37]} Nxd5 {[%emt 0:00:10]} 11. cxd5 {[%emt 0:00:02]} c6 {[%emt 0:00:28]} 12. Bc4 {[%emt 0:00:04]} cxd5 {[%emt 0:00:26]} 13. Bxd5 {[%emt 0:01:32]} Nd7 {[%emt 0:00:27]} 14. Nd2 {[%emt 0:01:30]} Nc5 {[%emt 0:00:42]} 15. O-O-O {[%emt 0:01:31]} Be6 {[%emt 0:01:07]} 16. Bxe6 {[%emt 0:00:36]} Nxe6 {[%emt 0:00:19]} 17. Be3 {[%emt 0:00:08]} f5 {[%emt 0:00:39]} 18. f3 {[%emt 0:00:13]} Nf4 {[%emt 0:00:44]} 19. Bxf4 {[%emt 0:04:14]} exf4 {[%emt 0:00:11]} 20. Rhe1 {[%emt 0:06:05]} Rac8+ {[%emt 0:13:37]} 21. Kb1 {[%emt 0:00:28]} Rcd8 {[%emt 0:12:01]} 22. Kc2 {[%emt 0:04:59]} Rc8+ {[%emt 0:01:05]} 23. Kb1 {[%emt 0:00:10]} Rcd8 {[%emt 0:00:49]} 24. Kc2 {[%emt 0:01:24]} Re6 {[%emt 0:09:33]} 25. exf5 {[%emt 0:07:18]} Rc6+ {[%emt 0:02:14]} 26. Kb1 {[%emt 0:00:30]} Rcd6 {[%emt 0:02:46]} 27. Kc2 {[%emt 0:00:58]} Rc6+ {[%emt 0:02:08]} 28. Kb1 {[%emt 0:00:24]} Rcd6 {[%emt 0:00:25]} 29. Kc2 {[%emt 0:00:06]} Rc8+ {[%emt 0:19:30]} 30. Kb1 {[%emt 0:01:07]} Rcd8 {[%emt 0:06:23]} 1/2-1/2